bitfinex/quotes_SOLUSD_20251009
["timestamp","ask_amount","ask_price","bid_price","bid_amount"]
[1759993946138,2.06438267,226.04,226.0,0.69]
[1759993946621,2.06438267,226.04,226.01,4.42458298]
[1759993946834,33.44438267,226.05,226.01,4.42458298]
[1759993947117,31.38,226.05,226.01,5.11458298]
[1759993948516,31.38,226.05,226.01,0.69]
[1759993949104,31.38,226.05,226.01,5.11456063]
[1759993949518,31.38,226.05,225.99,0.69]
[1759993949723,31.38,226.05,225.99,2.75438267]
[1759993950922,31.38,226.05,226.0,2.75438267]
[1759993951429,31.38,226.05,226.0,7.17897768]
[1759993952323,31.38,226.05,226.01,0.69]
[1759993952531,31.38,226.05,226.0,7.17897768]
[1759993953332,31.38,226.05,226.0,5.11459501]
[1759993953718,31.89,226.05,226.0,7.17897768]
[1759993955132,31.89,226.05,225.94,4.42593699]
[1759993955133,2.06438267,226.01,225.94,4.42593699]
[1759993955330,2.06438267,225.99,225.94,4.42593699]
[1759993955819,0.51,225.98,225.94,4.42593699]
[1759993956004,172.62919737,226.0,225.94,5.12593699]
[1759993956209,166.14,226.0,225.95,0.7]
[1759993956417,166.14,226.0,225.95,2.76438267]
[1759993957003,134.8,226.0,225.95,2.76438267]
[1759993957207,166.16,226.0,225.95,2.76438267]
[1759993957430,166.16,226.0,225.95,0.7]
[1759993958033,166.16,226.0,225.95,5.12559163]
[1759993958229,135.31,226.0,225.95,5.12559163]
[1759993958426,166.67,226.0,225.95,5.12559163]
[1759993959411,168.73438267,226.0,225.95,5.12559163]
[1759993960442,166.67,226.0,225.95,5.12559163]
[1759993960728,134.8,226.0,225.97,2.06438267]
[1759993960929,134.8,226.0,225.99,2.06438267]
[1759993961124,134.8,226.0,225.98,2.76438267]
[1759993962020,134.8,226.0,225.98,7.18942141]
[1759993962422,134.8,226.0,225.99,0.7]
[1759993963628,134.8,226.0,225.98,6.48942141]
[1759993963828,134.8,226.0,225.98,7.16942141]
[1759993964230,134.8,226.0,225.98,5.10503874]
[1759993966541,134.8,226.0,225.97,4.42536606]
[1759993966916,134.8,226.0,225.97,5.10536606]
[1759993967324,135.31,226.0,225.97,4.42536606]
[1759993968040,168.18438267,226.0,225.93,0.68]
[1759993968350,2.57438267,225.99,225.93,2.74438267]
[1759993969126,2.57438267,225.99,225.94,4.42595379]
[1759993969440,2.57438267,225.99,225.94,5.10595379]
[1759993970033,0.51,225.98,225.94,4.42595379]
[1759993970722,2.06438267,225.99,225.94,4.42595379]
[1759993970926,166.12,226.0,225.95,2.74438267]
[1759993972033,166.12,226.0,225.96,4.42556204]
[1759993972218,166.12,226.0,225.95,0.68]
[1759993972418,166.63,226.0,225.95,5.10564896]
[1759993974220,166.63,226.0,225.95,7.17003163]
[1759993976436,166.63,226.0,225.95,5.10564896]
[1759993977249,0.51,225.99,225.94,6.49029831]
[1759993979044,168.18438267,226.0,225.95,0.68]
[1759993979342,134.8,225.99,225.95,2.74438267]
[1759993979543,134.8,225.99,225.95,2.06438267]
[1759993979748,135.31,225.99,225.95,2.06438267]
[1759993980048,135.31,225.99,225.94,6.49029831]
[1759993980255,135.31,225.99,225.94,7.17029831]
[1759993980757,134.8,225.99,225.95,5.10556263]
[1759993981160,134.8,225.99,225.95,7.1699453]
[1759993981353,134.8,225.99,225.95,4.42556263]
[1759993981563,135.31,225.99,225.95,4.42556263]
[1759993982236,134.8,225.99,225.95,4.42556263]
[1759993982436,134.8,225.99,225.95,7.1699453]
[1759993982649,33.89438267,225.98,225.89,0.68]
[1759993982951,0.51,225.97,225.92,2.06438267]
[1759993983155,31.83,225.96,225.91,6.49090676]
[1759993983632,31.83,225.96,225.91,7.17090676]
[1759993983839,31.83,225.96,225.91,5.10652409]
[1759993984052,134.8,225.99,225.95,2.06438267]
[1759993984232,134.8,225.99,225.96,2.74438267]
[1759993984638,134.8,225.99,225.9,22.13364039]
[1759993984639,134.8,225.99,225.98,4.42517036]
[1759993984864,134.8,225.99,225.98,7.16955303]
[1759993985360,134.8,225.99,225.98,0.68]
[1759993986158,134.8,225.99,225.97,7.16974399]
[1759993987152,135.31,225.99,225.93,0.68]
[1759993987359,0.51,225.98,225.94,4.4259019]
[1759993988357,166.12,225.99,225.93,6.49053236]
[1759993988549,166.12,225.99,225.93,7.17053236]
[1759993989562,166.63,225.99,225.93,7.17053236]
[1759993989761,171.05501001,225.99,225.93,4.42614969]
[1759993990058,1.83442223,225.98,225.93,4.42614969]
[1759993990264,31.83,225.97,225.93,4.42614969]
[1759993990457,0.51,225.96,225.91,4.42654154]
[1759993991164,0.51,225.96,225.91,5.10654154]
[1759993991342,135.31,225.96,225.91,5.10654154]
[1759993991537,135.31,225.96,225.91,4.42654154]
[1759993991749,31.32,225.95,225.91,4.42654154]
[1759993992868,31.32,225.95,225.91,5.10654154]
[1759993993455,31.32,225.95,225.92,2.00442223]
[1759993993652,31.32,225.95,225.93,0.68]
[1759993994744,134.8,225.96,225.93,0.68]
[1759993994961,166.12,225.96,225.92,1.32442223]
[1759993995159,166.12,225.96,225.93,0.68]
[1759993995356,166.12,225.96,225.94,4.42595379]
[1759993996457,166.12,225.96,225.93,4.42614969]
[1759993997566,166.12,225.96,225.93,5.10614969]
[1759993998465,134.8,225.96,225.94,2.00442223]
[1759993998786,134.8,225.96,225.95,0.68]
[1759994000251,134.8,225.96,225.95,5.10575791]
[1759994001770,31.32,226.01,225.95,16.17015268]
[1759994001964,136.12442223,226.04,225.96,2.00442223]
[1759994002162,166.12,226.03,225.96,2.00442223]
[1759994002556,166.12,226.03,225.96,0.68]
[1759994002768,166.12,226.03,225.97,4.42536619]
[1759994003391,171.05426043,226.03,225.97,4.42536619]
[1759994003773,1.32442223,226.02,225.97,4.42536619]
[1759994003965,1.83442223,226.02,225.97,5.10536619]
[1759994004482,1.32442223,226.02,225.98,0.68]
[1759994004654,32.62442223,226.02,225.99,4.42497455]
[1759994004860,136.12442223,226.03,225.99,4.42497455]
[1759994005076,31.3,226.02,225.99,4.42497455]
[1759994005575,135.31,226.03,225.99,4.42497455]
[1759994005855,31.3,226.02,225.99,4.42497455]
[1759994006282,31.81,226.02,225.96,5.10556204]
[1759994006470,31.81,226.02,225.96,6.42998427]
[1759994006692,31.3,226.02,225.96,4.42556204]
[1759994006986,0.51,226.01,225.96,4.42556204]
[1759994007160,0.51,226.01,225.96,5.10556204]
[1759994007782,32.62442223,226.02,225.98,4.42517036]
[1759994007996,31.3,226.02,225.98,5.10517036]
[1759994008190,31.3,226.02,225.99,0.68]
[1759994008492,31.3,226.02,225.98,4.42517036]
[1759994008809,31.3,226.02,225.98,5.10517036]
[1759994009184,31.3,226.02,225.97,4.42536619]
[1759994009362,31.3,226.02,225.98,0.68]
[1759994009878,134.8,226.03,225.99,2.00442223]
[1759994010188,31.3,226.07,226.01,1.32442223]
[1759994010386,31.3,226.07,226.03,1.32442223]
[1759994010569,31.3,226.07,226.03,0.68]
[1759994011165,31.3,226.07,226.04,4.42399575]
[1759994012271,31.3,226.09,226.04,5.10399575]
[1759994012473,31.81,226.09,226.04,5.10399575]
[1759994013091,31.3,226.09,226.04,5.10399575]
[1759994013269,31.3,226.09,226.04,0.68]
[1759994013584,31.3,226.09,226.05,0.68]
[1759994013786,136.12442223,226.12,226.05,2.00442223]
[1759994014094,31.3,226.11,226.06,1.32442223]
[1759994014290,31.3,226.11,226.06,2.00442223]
[1759994014504,134.8,226.12,226.07,0.68]
[1759994014665,134.8,226.12,226.07,2.00442223]
[1759994015070,134.8,226.12,226.08,0.68]
[1759994015272,134.8,226.12,226.09,0.68]
[1759994016297,134.8,226.12,226.09,5.10296297]
[1759994017978,134.8,226.12,226.09,4.42296297]
[1759994018175,134.8,226.12,226.1,0.7]
[1759994018390,1.83442223,226.19,226.11,1.32442223]
[1759994018594,31.3,226.18,226.12,2.02442223]
[1759994018787,31.3,226.18,226.13,0.7]
[1759994018994,31.3,226.18,226.14,0.7]
[1759994019679,31.28,226.18,226.14,0.7]
[1759994020280,31.28,226.18,226.14,4.42195129]
[1759994020486,31.28,226.18,226.15,0.7]
[1759994020691,31.28,226.18,226.16,0.7]
[1759994020875,31.28,226.18,226.14,5.74637352]
[1759994021075,31.28,226.18,226.14,6.44637352]
[1759994021673,31.28,226.18,226.15,0.7]
[1759994022276,31.28,226.18,226.15,5.12178427]
[1759994023810,31.28,226.2,226.15,5.12178427]
[1759994023979,31.79,226.2,226.15,5.12178427]
[1759994024179,31.79,226.2,226.15,4.42178427]
[1759994024388,31.79,226.2,226.15,5.08178427]
[1759994024588,1.32442223,226.16,226.09,5.08301738]
[1759994024791,1.32442223,226.12,226.05,0.66]
[1759994024981,1.32442223,226.12,226.06,4.42348701]
[1759994025289,31.28,226.14,226.08,1.32442223]
[1759994025688,31.28,226.14,226.08,1.98442223]
[1759994026181,31.28,226.14,226.09,4.42301738]
[1759994026400,31.79,226.14,226.09,5.08301738]
[1759994027584,31.28,226.14,226.09,5.08301738]
[1759994027785,31.28,226.14,226.09,4.42301738]
[1759994027984,31.28,226.14,226.09,5.08301738]
[1759994029913,31.28,226.14,226.09,25.22301738]
[1759994029914,1.83442223,226.13,226.09,25.22301738]
[1759994030087,0.51,226.12,226.09,25.22301738]
[1759994030404,0.51,226.11,226.09,25.22301738]
[1759994030779,1.83442223,226.13,226.09,25.22301738]
[1759994031186,0.51,226.12,226.09,25.22301738]
[1759994032698,1.32442223,226.13,226.09,25.22301738]
[1759994032884,1.83442223,226.13,226.09,25.22301738]
[1759994033609,0.51,226.13,226.09,25.22301738]
[1759994035088,31.28,226.14,226.09,25.22301738]
[1759994035309,31.79,226.14,226.09,25.22301738]
[1759994035609,31.79,226.14,226.09,25.88301738]
[1759994035906,1.32442223,226.13,226.09,25.88301738]
[1759994036115,31.28,226.14,226.09,25.22301738]
[1759994036289,31.28,226.14,226.09,25.88301738]
[1759994036496,31.79,226.14,226.09,25.22301738]
[1759994036794,0.51,226.13,226.09,25.22301738]
[1759994037615,32.60442223,226.14,226.09,25.88301738]
[1759994037801,33.11442223,226.14,226.09,25.88301738]
[1759994038107,1.32442223,226.13,226.09,5.08301738]
[1759994039409,1.32442223,226.13,226.07,4.42340867]
[1759994039605,1.83442223,226.13,226.07,5.08340867]
[1759994039910,1.32442223,226.08,225.99,11.06243639]
[1759994040089,32.58442223,226.09,226.03,0.66]
[1759994040295,31.26,226.09,226.03,1.98442223]
[1759994040515,1.83442223,226.11,226.04,0.66]
[1759994040812,167.38442223,226.1,226.04,0.66]
[1759994041216,171.8073348,226.1,226.04,5.08389209]
[1759994041695,1.32442223,226.08,226.02,4.42436899]
[1759994042017,1.32442223,226.05,225.98,0.66]
[1759994042197,1.32442223,226.03,225.98,0.66]
[1759994042595,32.58442223,226.04,225.99,0.66]
[1759994042908,32.58442223,226.04,226.0,0.66]
[1759994048226,1.32442223,226.01,225.95,25.22571893]
[1759994048402,1.32442223,226.0,225.95,5.11571893]
[1759994048603,1.32442223,226.0,225.96,0.69]
[1759994050819,1.32442223,226.0,225.96,5.11554257]
[1759994051238,1.32442223,226.0,225.92,18.51500333]
[1759994051239,1.32442223,225.98,225.92,18.51500333]
[1759994051405,1.32442223,225.93,225.92,14.08865773]
[1759994051732,1.32442223,225.93,225.91,4.42646105]
[1759994051924,2.06987753,225.93,225.91,4.42646105]
[1759994052124,2.06987753,225.93,225.89,4.42678669]
[1759994052424,2.06987753,225.91,225.89,5.11678669]
[1759994052623,2.06987753,225.91,225.89,0.69]
[1759994053506,2.06987753,225.91,225.89,5.11689641]
[1759994054004,2.06987753,225.91,225.89,4.42689641]
[1759994054609,2.06987753,225.91,225.9,0.69]
[1759994057723,2.06987753,225.91,225.88,16.18495306]
[1759994057933,2.06987753,225.91,225.9,4.42673749]
[1759994059144,2.06987753,225.91,225.88,15.49495306]
[1759994059316,2.06987753,225.91,225.9,0.69]
[1759994059517,134.8,225.94,225.9,0.69]
[1759994059715,2.06987753,225.92,225.9,0.69]
[1759994059925,2.06987753,225.92,225.88,16.18495306]
[1759994060123,2.06987753,225.92,225.87,34.39815964]
[1759994060124,2.06987753,225.9,225.85,0.1]
[1759994060326,2.06987753,225.86,225.85,4.52767772]
[1759994060733,31.79,225.91,225.85,5.21767772]
[1759994060734,2.06987753,225.88,225.85,5.21767772]
[1759994062334,2.06987753,225.88,225.85,4.52767772]
[1759994062631,2.06987753,225.88,225.85,5.21767772]
[1759994062833,166.08,225.9,225.85,5.21767772]
[1759994063014,2.06987753,225.87,225.85,5.21767772]
[1759994063414,2.06987753,225.87,225.85,4.52767772]
[1759994063836,31.28,225.89,225.85,0.79]
[1759994064012,2.06987753,225.86,225.85,0.79]
[1759994064215,2.06987753,225.86,225.85,5.21771751]
[1759994067125,31.28,225.89,225.85,5.21771751]
[1759994067319,2.06987753,225.87,225.86,0.69]
[1759994067535,2.06987753,225.87,225.85,4.52771751]
[1759994067725,2.06987753,225.87,225.85,5.21771751]
[1759994068030,2.06987753,225.87,225.85,4.52771751]
[1759994071444,2.06987753,225.87,225.85,0.1]
[1759994071645,2.06987753,225.86,225.85,0.1]
[1759994071937,33.34987753,225.86,225.85,0.1]
[1759994072325,2.06987753,225.86,225.85,0.1]
[1759994072516,33.34987753,225.86,225.85,0.1]
[1759994072718,33.85987753,225.86,225.85,0.1]
[1759994073231,33.34987753,225.86,225.85,0.1]
[1759994075245,2.06987753,225.86,225.85,0.1]
[1759994075536,33.34987753,225.86,225.85,0.1]
[1759994075918,2.06987753,225.86,225.85,0.1]
[1759994076124,38.287399,225.86,225.85,0.1]
[1759994076623,17.88387421,225.86,225.85,0.1]
[1759994077042,49.16387421,225.86,225.85,0.1]
[1759994077243,22.41273405,225.86,225.85,0.1]
[1759994077441,17.37387421,225.86,225.85,0.1]
[1759994077615,49.16387421,225.86,225.85,0.1]
[1759994078028,17.88387421,225.86,225.85,0.1]
[1759994078229,49.16387421,225.86,225.85,0.1]
[1759994078838,15.30399668,225.86,225.85,0.1]
[1759994079047,49.16387421,225.86,225.85,0.1]
[1759994079347,33.34987753,225.86,225.85,0.1]
[1759994080737,2.06987753,225.86,225.85,0.1]
[1759994080940,33.34987753,225.86,225.85,0.1]
[1759994081329,2.06987753,225.86,225.85,0.1]
[1759994081524,31.28,225.86,225.85,0.1]
[1759994081727,2.06987753,225.86,225.85,0.1]
[1759994082022,33.34987753,225.86,225.85,0.1]
[1759994082222,2.06987753,225.86,225.85,0.1]
[1759994082455,33.34987753,225.86,225.85,0.1]
[1759994082838,2.06987753,225.86,225.85,0.1]
[1759994083036,33.34987753,225.86,225.85,0.1]
[1759994085244,31.28,225.86,225.85,0.77]
[1759994085423,33.34987753,225.86,225.85,0.77]
[1759994086435,2.06987753,225.86,225.85,0.77]
[1759994086642,4.42828767,225.91,225.85,0.77]
[1759994086643,8.85485956,225.91,225.85,5.19771751]
[1759994086835,2.06987753,225.87,225.86,0.67]
[1759994087035,2.06987753,225.87,225.85,4.52771751]
[1759994087340,33.34987753,225.87,225.85,4.52771751]
[1759994087529,33.34987753,225.87,225.86,0.67]
[1759994087728,31.28,225.87,225.86,0.67]
[1759994087948,33.34987753,225.87,225.86,0.67]
[1759994088541,33.34987753,225.87,225.85,0.1]
[1759994089047,33.34987753,225.87,225.85,0.77]
[1759994090543,33.34987753,225.87,225.86,0.67]
[1759994090747,33.34987753,225.87,225.85,4.52768909]
[1759994090933,11.38647521,225.86,225.85,0.1]
[1759994091135,146.18647521,225.86,225.85,0.1]
[1759994091950,145.67647521,225.86,225.85,0.1]
[1759994092347,11.06705734,225.9,225.85,0.1]
[1759994092348,4.93678638,225.9,225.85,0.1]
[1759994092647,2.06987753,225.86,225.85,0.1]
[1759994092847,33.34987753,225.86,225.85,0.1]
[1759994095456,37.777399,225.86,225.85,0.1]
[1759994095657,33.34987753,225.86,225.85,0.1]
[1759994098458,33.34987753,225.86,225.85,0.77]
[1759994098969,33.34987753,225.86,225.85,0.1]
[1759994099457,31.26,225.86,225.85,0.77]
[1759994099753,33.32987753,225.86,225.85,0.77]
[1759994100959,33.32987753,225.86,225.85,0.1]
[1759994101156,33.32987753,225.86,225.85,0.77]
[1759994101459,49.14387421,225.86,225.85,0.1]
[1759994101837,53.57214461,225.86,225.85,0.1]
[1759994102160,55.64202214,225.86,225.85,0.1]
[1759994103352,58.56585054,225.86,225.85,0.1]
[1759994105044,27.30585054,225.86,225.85,0.1]
[1759994105263,58.56585054,225.86,225.85,0.1]
[1759994106345,134.7,225.84,225.79,0.1]
[1759994106550,10.87647521,225.82,225.8,0.71]
[1759994106759,33.32987753,225.81,225.79,0.1]
[1759994107159,2.06987753,225.81,225.79,0.1]
[1759994107358,31.26,225.8,225.79,0.81]
[1759994108069,2.06987753,225.81,225.79,0.81]
[1759994108247,31.26,225.8,225.79,0.1]
[1759994108748,31.26,225.8,225.79,0.81]
[1759994108946,6.49838759,225.81,225.79,0.81]
[1759994109264,2.06987753,225.81,225.79,0.81]
[1759994109465,31.26,225.8,225.79,0.81]
[1759994111270,31.26,225.8,225.79,0.1]
[1759994111458,2.06987753,225.8,225.79,0.1]
[1759994111860,33.32987753,225.8,225.79,0.1]
[1759994113670,48.6350507,225.8,225.79,0.1]
[1759994113977,47.89212912,225.8,225.79,0.1]
[1759994114150,49.66584705,225.8,225.79,0.1]
[1759994114673,18.40584705,225.8,225.79,0.1]
[1759994114972,49.66584705,225.8,225.79,0.1]
[1759994115850,50.16584705,225.8,225.79,0.1]
[1759994116876,50.67584705,225.8,225.79,0.1]
[1759994117053,19.41584705,225.8,225.79,0.1]
[1759994117255,50.67584705,225.8,225.79,0.1]
[1759994117950,19.41584705,225.8,225.79,0.1]
[1759994118151,50.67584705,225.8,225.79,0.1]
[1759994119289,19.41584705,225.8,225.79,0.1]
[1759994119684,10.87647521,225.79,225.78,0.1]
[1759994119852,11.38647521,225.79,225.78,0.1]
[1759994120185,42.64647521,225.79,225.77,0.1]
[1759994120368,12.20343116,225.78,225.77,0.1]
[1759994120575,10.87647521,225.77,225.71,0.71]
[1759994120771,1.32695595,225.72,225.71,0.71]
[1759994120975,32.58695595,225.72,225.71,0.71]
[1759994121579,32.58695595,225.72,225.65,31.87885549]
[1759994121580,2.6539119,225.72,225.67,4.43124224]
[1759994121771,1.32695595,225.68,225.65,4.43145508]
[1759994122078,1.32695595,225.66,225.65,4.43145508]
[1759994122470,1.32695595,225.66,225.65,5.14145508]
[1759994122656,1.32695595,225.66,225.65,25.94145508]
[1759994123170,4.4306986,225.7,225.65,0.71]
[1759994123354,10.87647521,225.69,225.66,0.71]
[1759994123559,31.26,225.68,225.66,0.71]
[1759994123772,31.26,225.68,225.67,0.71]
[1759994123961,10.87647521,225.7,225.67,0.71]
[1759994124156,31.26,225.69,225.67,0.71]
[1759994124783,31.26,225.68,225.67,0.71]
[1759994125084,31.26,225.68,225.64,4.43173417]
[1759994125288,134.8,225.71,225.64,4.43173417]
[1759994125584,134.8,225.71,225.64,15.51132998]
[1759994125786,31.26,225.7,225.65,0.71]
[1759994125964,139.23048072,225.71,225.65,0.71]
[1759994126158,31.26,225.7,225.65,0.71]
[1759994126479,31.26,225.69,225.65,5.14162458]
[1759994126680,139.23048072,225.71,225.66,0.71]
[1759994126880,31.26,225.7,225.67,0.71]
[1759994127183,31.26,225.69,225.65,0.71]
[1759994127382,31.26,225.68,225.65,0.71]
[1759994127579,1.32695595,225.66,225.63,4.43184503]
[1759994127767,31.26,225.67,225.63,15.51193189]
[1759994127967,1.32695595,225.67,225.63,15.51193189]
[1759994128162,1.32695595,225.67,225.64,0.71]
[1759994128576,1.32695595,225.67,225.65,4.43164192]
[1759994128777,1.32695595,225.67,225.66,0.71]
[1759994130978,32.58695595,225.67,225.66,0.71]
[1759994132064,1.32695595,225.67,225.66,0.71]
[1759994132269,32.58695595,225.67,225.66,0.71]
[1759994133698,31.26,225.67,225.66,5.14144553]
[1759994133913,32.58695595,225.67,225.66,0.71]
[1759994135778,148.10878601,225.71,225.66,5.14144553]
[1759994136090,1.32695595,225.69,225.66,5.14144553]
[1759994136286,1.32695595,225.69,225.67,0.7]
[1759994136686,1.32695595,225.69,225.68,4.43105281]
[1759994136999,1.32695595,225.69,225.68,5.13105281]
[1759994138190,10.87682261,225.74,225.68,5.13105281]
[1759994138390,10.87682261,225.74,225.69,0.7]
[1759994138579,12.20377856,225.74,225.69,0.7]
[1759994138779,12.20377856,225.74,225.7,4.43066016]
[1759994139096,0.5,225.72,225.71,0.7]
[1759994139718,10.87682261,225.74,225.71,0.7]
[1759994139882,1.32695595,225.78,225.71,2.02695595]
[1759994140084,0.51,225.88,225.74,20.8]
[1759994140292,1.32695595,225.83,225.75,0.7]
[1759994140490,134.8,225.9,225.76,1.32695595]
[1759994140699,134.8,225.9,225.79,15.50112936]
[1759994140985,1.32695595,225.88,225.8,2.02695595]
[1759994141312,31.26,225.89,225.84,1.32695595]
[1759994141602,31.26,225.89,225.85,0.7]
[1759994141909,31.26,225.89,225.84,1.32695595]
[1759994142095,31.26,225.89,225.86,0.7]
[1759994142594,31.26,225.89,225.83,1.32695595]
[1759994142895,31.26,225.89,225.84,2.02695595]
[1759994143106,31.26,225.89,225.85,0.7]
[1759994143299,31.26,225.89,225.86,0.7]
[1759994143803,31.26,225.89,225.86,0.72]
[1759994145396,31.26,225.89,225.86,5.14751705]
[1759994146996,31.26,225.89,225.86,0.72]
[1759994147215,134.8,225.91,225.87,2.04695595]
[1759994147497,31.24,225.93,225.88,2.04695595]
[1759994147699,31.24,225.93,225.89,0.72]
[1759994147876,31.24,225.93,225.9,0.72]
[1759994148077,1.32695595,225.94,225.91,0.72]
[1759994148296,32.56695595,225.95,225.91,0.72]
[1759994148883,31.24,225.95,225.92,0.72]
[1759994149314,1.32695595,225.98,225.93,0.72]
[1759994149515,0.2,226.0,225.96,1.32695595]
[1759994149696,0.2,226.0,225.97,0.72]
[1759994150088,0.2,226.0,225.97,1.32695595]
[1759994150279,0.2,226.0,225.98,0.72]
[1759994150484,0.2,226.0,225.91,4.42636012]
[1759994150485,10.87647521,225.98,225.91,4.42636012]
[1759994150681,1.32695595,225.94,225.91,0.72]
[1759994150908,32.76695595,226.0,225.93,1.32695595]
[1759994151081,32.76695595,226.0,225.94,0.72]
[1759994151284,31.44,226.0,225.96,1.32695595]
[1759994151485,31.44,226.0,225.97,0.72]
[1759994153614,31.44,226.0,225.96,4.4254996]
[1759994153812,0.2,226.0,225.98,0.72]
[1759994154709,0.2,226.0,225.96,0.72]
[1759994154907,0.2,226.0,225.97,0.72]
[1759994155715,0.2,226.0,225.98,0.72]
[1759994156931,0.2,226.0,225.96,6.47250344]
[1759994157116,0.2,226.0,225.98,0.72]
[1759994157810,0.2,226.0,225.99,2.04695595]
[1759994158014,0.2,226.0,225.99,0.72]
[1759994158222,0.2,226.0,225.99,2.04695595]
[1759994158973,0.2,226.0,225.99,6.4719305]
[1759994159101,0.2,226.0,225.99,27.2719305]
[1759994159307,0.2,226.0,225.99,58.4919305]
[1759994160098,0.2,226.0,225.99,37.6919305]
[1759994160528,0.2,226.0,225.99,6.4719305]
[1759994160752,0.2,226.0,225.99,0.72]
[1759994160956,0.2,226.0,225.91,19.99999999]
[1759994161235,1.32695595,225.98,225.9,4.42673749]
[1759994161442,1.32695595,225.98,225.89,0.72]
[1759994161443,1.32695595,225.95,225.89,0.72]
[1759994161736,10.87647521,225.98,225.9,0.72]
[1759994161956,1.32695595,225.95,225.9,0.72]
[1759994162529,1.32695595,225.94,225.88,22.12695595]
[1759994162926,1.32695595,225.94,225.89,4.42693346]
[1759994163130,1.32695595,225.94,225.88,22.12695595]
[1759994163131,1.32695595,225.92,225.87,0.72]
[1759994163440,1.32695595,225.93,225.88,21.52]
[1759994163631,1.32695595,225.94,225.89,0.72]
[1759994164531,4.42577916,225.95,225.89,0.72]
[1759994164731,1.32695595,225.94,225.89,5.1469123]
[1759994165455,1.32695595,225.92,225.89,5.1469123]
[1759994167850,1.32695595,225.92,225.9,0.72]
[1759994168044,1.32695595,225.92,225.89,4.4269123]
[1759994168237,1.32695595,225.92,225.88,20.8]
[1759994168443,1.32695595,225.92,225.88,21.52]
[1759994168646,1.32695595,225.92,225.89,0.72]
[1759994168965,1.32695595,225.92,225.9,0.72]
[1759994169149,1.32695595,225.92,225.88,25.94712447]
[1759994169459,1.32695595,225.92,225.89,0.72]
[1759994169958,1.32695595,225.92,225.9,0.72]
[1759994170864,1.32695595,225.92,225.88,20.8]
[1759994171153,134.8,225.97,225.89,20.8]
[1759994171154,1.32695595,225.9,225.89,20.8]
[1759994171355,1.32695595,225.9,225.84,11.069678]
[1759994171356,1.32695595,225.9,225.82,13.72828064]
[1759994171658,1.32695595,225.84,225.82,13.72828064]
[1759994171862,1.32695595,225.84,225.82,34.52828064]
[1759994172049,1.32695595,225.84,225.83,0.72]
[1759994172239,0.51,225.91,225.83,0.72]
[1759994172564,1.32695595,225.9,225.84,15.49769747]
[1759994172748,1.32695595,225.9,225.85,0.72]
[1759994172944,1.32695595,225.88,225.86,0.72]
[1759994173151,1.32695595,225.88,225.87,0.72]
[1759994173347,1.32695595,225.9,225.87,0.72]
[1759994174368,136.12695595,225.91,225.88,5.14695329]
[1759994174557,136.12695595,225.91,225.89,0.72]
[1759994175066,136.12695595,225.91,225.9,0.72]
[1759994175967,134.8,225.91,225.9,0.72]
[1759994176471,134.8,225.91,225.9,5.14673749]
[1759994178043,134.8,225.91,225.9,21.52]
[1759994178250,134.8,225.91,225.9,25.94673749]
[1759994178949,134.8,225.91,225.86,4.42745353]
[1759994179166,2.07012768,225.88,225.86,4.42745353]
[1759994179365,2.07012768,225.88,225.87,20.8]
[1759994180048,134.8,225.91,225.87,25.22731654]
[1759994180252,2.07012768,225.89,225.87,25.22731654]
[1759994180452,2.07012768,225.89,225.87,20.8]
[1759994180641,0.51,225.88,225.84,4.42785446]
[1759994180843,2.07012768,225.86,225.84,4.42785446]
[1759994181070,31.22,225.89,225.85,0.72]
[1759994181264,31.22,225.89,225.86,0.72]